[Event "*** Titled Tuesday Blitz"]
[Site "Chess.com"]
[Date "2020.04.14"]
[Round "1"]
[White "Aronyak1"]
[Black "TengisChess"]
[Result "1-0"]
[WhiteElo "2735"]
[BlackElo "2383"]
[TimeControl "180+1"]
[EndTime "10:06:21 PDT"]
[Termination "Aronyak1 won by resignation"]

1. c4 {[%clk 0:03:00.9]} 1... Nf6 {[%clk 0:02:59.6]} 2. Nc3 {[%clk 0:03:00.8]}
2... g6 {[%clk 0:02:59.1]} 3. Nf3 {[%clk 0:03:00.4]} 3... Bg7 {[%clk 0:02:59.3]}
4. g3 {[%clk 0:03:00.7]} 4... O-O {[%clk 0:03:00.2]} 5. Bg2 {[%clk 0:03:01.3]}
5... d6 {[%clk 0:02:57.8]} 6. O-O {[%clk 0:03:01.1]} 6... Nc6 {[%clk 0:02:53.6]}
7. Rb1 {[%clk 0:03:00.3]} 7... a5 {[%clk 0:02:49.3]} 8. d3 {[%clk 0:02:59.2]}
8... e5 {[%clk 0:02:46.9]} 9. a3 {[%clk 0:02:59.2]} 9... Nh5 {[%clk 0:02:45.5]}
10. b4 {[%clk 0:02:56.7]} 10... axb4 {[%clk 0:02:46.4]} 11. axb4 {[%clk
0:02:57.5]} 11... f5 {[%clk 0:02:47]} 12. b5 {[%clk 0:02:57.8]} 12... Nd4 {[%clk
0:02:47.3]} 13. Nxd4 {[%clk 0:02:56.8]} 13... exd4 {[%clk 0:02:47.3]} 14. Nd5
{[%clk 0:02:57.4]} 14... Ra2 {[%clk 0:02:35.3]} 15. Rb2 {[%clk 0:02:55.5]} 15...
Ra1 {[%clk 0:02:25.6]} 16. Qc2 {[%clk 0:02:55]} 16... b6 {[%clk 0:02:16]} 17.
Ra2 {[%clk 0:02:52.6]} 17... Rxa2 {[%clk 0:02:14.7]} 18. Qxa2 {[%clk 0:02:53.5]}
18... Be6 {[%clk 0:02:13.5]} 19. Bd2 {[%clk 0:02:50.2]} 19... Bxd5 {[%clk
0:02:11.2]} 20. Bxd5+ {[%clk 0:02:47.3]} 20... Kh8 {[%clk 0:02:11.5]} 21. Bf3
{[%clk 0:02:42.7]} 21... Nf6 {[%clk 0:02:05]} 22. Ra1 {[%clk 0:02:42.4]} 22...
Nd7 {[%clk 0:01:51.7]} 23. Qc2 {[%clk 0:02:40]} 23... Ne5 {[%clk 0:01:43.5]} 24.
Bd5 {[%clk 0:02:39.4]} 24... Qe7 {[%clk 0:01:35.6]} 25. Ra7 {[%clk 0:02:37.5]}
25... h6 {[%clk 0:01:32.5]} 26. Qa2 {[%clk 0:02:35.1]} 26... Kh7 {[%clk
0:01:28.5]} 27. Qa6 {[%clk 0:02:32.4]} 27... Ng4 {[%clk 0:01:25.8]} 28. Bf3
{[%clk 0:02:29.2]} 28... Ne5 {[%clk 0:01:25.9]} 29. Qxb6 {[%clk 0:02:18.8]}
29... Nxf3+ {[%clk 0:01:18.3]} 30. exf3 {[%clk 0:02:19.7]} 30... Rf7 {[%clk
0:00:57.5]} 31. Qc6 {[%clk 0:02:08]} 31... Qe2 {[%clk 0:00:57.2]} 32. Ba5 {[%clk
0:02:05.3]} 32... Qxd3 {[%clk 0:00:45.6]} 33. b6 {[%clk 0:02:04.9]} 33... f4
{[%clk 0:00:12]} 34. g4 {[%clk 0:01:57.7]} 34... Re7 {[%clk 0:00:05.5]} 35. bxc7
{[%clk 0:01:56]} 35... Re2 {[%clk 0:00:04.9]} 36. c8=Q {[%clk 0:01:40.6]} 36...
Qd1+ {[%clk 0:00:03.5]} 37. Kg2 {[%clk 0:01:40.9]} 37... Rxf2+ {[%clk
0:00:04.1]} 38. Kxf2 {[%clk 0:01:41.8]} 38... Qc2+ {[%clk 0:00:03.9]} 39. Ke1
{[%clk 0:01:40.7]} 39... Qc1+ {[%clk 0:00:04.2]} 40. Ke2 {[%clk 0:01:40.8]}
40... d3+ {[%clk 0:00:03.5]} 41. Kxd3 {[%clk 0:01:38.4]} 41... Qd1+ {[%clk
0:00:03.7]} 42. Bd2 {[%clk 0:01:36.2]} 42... Qf1+ {[%clk 0:00:02.5]} 43. Kc2
{[%clk 0:01:34.9]} 43... Qa1 {[%clk 0:00:01.6]} 44. Rxa1 {[%clk 0:01:33.9]} 1-0

[Event "*** Titled Tuesday Blitz"]
[Site "Chess.com"]
[Date "2020.04.14"]
[Round "1"]
[White "kingnb"]
[Black "Lestofante90"]
[Result "0-1"]
[WhiteElo "2405"]
[BlackElo "2777"]
[TimeControl "180+1"]
[EndTime "10:06:24 PDT"]
[Termination "Lestofante90 won by checkmate"]

1. e4 {[%clk 0:03:00.9]} 1... e6 {[%clk 0:02:45.7]} 2. d4 {[%clk 0:02:54.3]}
2... d5 {[%clk 0:02:36.8]} 3. Nd2 {[%clk 0:02:52.8]} 3... dxe4 {[%clk
0:02:32.6]} 4. Nxe4 {[%clk 0:02:53.6]} 4... Nd7 {[%clk 0:02:33.3]} 5. Nf3 {[%clk
0:02:49.5]} 5... Ngf6 {[%clk 0:02:33.5]} 6. Bd3 {[%clk 0:02:47]} 6... c5 {[%clk
0:02:33.6]} 7. c3 {[%clk 0:02:34.2]} 7... cxd4 {[%clk 0:02:32.4]} 8. Nxd4 {[%clk
0:02:33.6]} 8... Nc5 {[%clk 0:02:27.7]} 9. Nxc5 {[%clk 0:02:30]} 9... Bxc5
{[%clk 0:02:28.6]} 10. O-O {[%clk 0:02:26.6]} 10... Bxd4 {[%clk 0:02:26.3]} 11.
Qa4+ {[%clk 0:02:23.2]} 11... Ke7 {[%clk 0:02:23.2]} 12. cxd4 {[%clk 0:02:13.6]}
12... Re8 {[%clk 0:02:18.5]} 13. Bb5 {[%clk 0:02:11.5]} 13... Nd5 {[%clk
0:01:21.8]} 14. Bxe8 {[%clk 0:02:09]} 14... Qxe8 {[%clk 0:01:22.7]} 15. Qxe8+
{[%clk 0:02:09]} 15... Kxe8 {[%clk 0:01:22.2]} 16. Bd2 {[%clk 0:02:06.4]} 16...
b6 {[%clk 0:01:22]} 17. Rac1 {[%clk 0:02:05.8]} 17... Kd7 {[%clk 0:01:21.8]} 18.
f4 {[%clk 0:02:03.3]} 18... Ba6 {[%clk 0:01:15.2]} 19. Rf3 {[%clk 0:02:00.5]}
19... Be2 {[%clk 0:01:04.8]} 20. Ra3 {[%clk 0:02:00.1]} 20... a5 {[%clk
0:00:56.8]} 21. Kf2 {[%clk 0:01:59.4]} 21... Bb5 {[%clk 0:00:54.3]} 22. Rf3
{[%clk 0:01:52.7]} 22... g6 {[%clk 0:00:49.4]} 23. g4 {[%clk 0:01:49.8]} 23...
Ne7 {[%clk 0:00:42.2]} 24. Rh3 {[%clk 0:01:47.8]} 24... h5 {[%clk 0:00:41.4]}
25. gxh5 {[%clk 0:01:45.4]} 25... gxh5 {[%clk 0:00:41.8]} 26. Rxh5 {[%clk
0:01:44.8]} 26... Nf5 {[%clk 0:00:39.2]} 27. Bc3 {[%clk 0:01:41.9]} 27... Bc4
{[%clk 0:00:37.6]} 28. a3 {[%clk 0:01:40]} 28... Bd5 {[%clk 0:00:37.7]} 29. Re1
{[%clk 0:01:32.8]} 29... Nd6 {[%clk 0:00:36.7]} 30. Rhe5 {[%clk 0:01:27]} 30...
Rh8 {[%clk 0:00:34.8]} 31. R5e2 {[%clk 0:01:22.5]} 31... Rxh2+ {[%clk
0:00:33.8]} 32. Kg3 {[%clk 0:01:20.9]} 32... Rh7 {[%clk 0:00:31.6]} 33. Rh2
{[%clk 0:01:17.8]} 33... Nf5+ {[%clk 0:00:30.8]} 34. Kg4 {[%clk 0:01:13.5]}
34... Rxh2 {[%clk 0:00:30.2]} 35. Kg5 {[%clk 0:01:14.2]} 35... Ke7 {[%clk
0:00:28.4]} 36. Re5 {[%clk 0:01:13.5]} 36... Rg2+ {[%clk 0:00:27.6]} 37. Kh5
{[%clk 0:01:12.7]} 37... Bf3# {[%clk 0:00:27.9]} 0-1

[Event "*** Titled Tuesday Blitz"]
[Site "Chess.com"]
[Date "2020.04.14"]
[Round "1"]
[White "ajian"]
[Black "SGchess01"]
[Result "0-1"]
[WhiteElo "2368"]
[BlackElo "2714"]
[TimeControl "180+1"]
[EndTime "10:06:25 PDT"]
[Termination "SGchess01 won on time"]

1. d4 {[%clk 0:03:00.9]} 1... a6 {[%clk 0:02:58.6]} 2. Nf3 {[%clk 0:02:58.4]}
2... Nf6 {[%clk 0:02:57.8]} 3. c4 {[%clk 0:02:58.2]} 3... e6 {[%clk 0:02:57.4]}
4. Nc3 {[%clk 0:02:57.3]} 4... d5 {[%clk 0:02:57]} 5. cxd5 {[%clk 0:02:55.8]}
5... exd5 {[%clk 0:02:57.2]} 6. Bg5 {[%clk 0:02:56.2]} 6... Be6 {[%clk
0:02:57.4]} 7. e3 {[%clk 0:02:55.7]} 7... h6 {[%clk 0:02:57.7]} 8. Bh4 {[%clk
0:02:55.5]} 8... Nbd7 {[%clk 0:02:54.5]} 9. Bd3 {[%clk 0:02:55]} 9... Bd6 {[%clk
0:02:54.6]} 10. O-O {[%clk 0:02:54.3]} 10... c6 {[%clk 0:02:54.8]} 11. a3 {[%clk
0:02:48.2]} 11... Qc7 {[%clk 0:02:54.2]} 12. Rc1 {[%clk 0:02:47.4]} 12... O-O
{[%clk 0:02:54.1]} 13. b4 {[%clk 0:02:47.1]} 13... Bg4 {[%clk 0:02:52.5]} 14.
Bg3 {[%clk 0:02:35.2]} 14... Bxg3 {[%clk 0:02:50.5]} 15. hxg3 {[%clk 0:02:36.1]}
15... Rfe8 {[%clk 0:02:50.7]} 16. a4 {[%clk 0:02:28.3]} 16... Qd6 {[%clk
0:02:49.5]} 17. Qb3 {[%clk 0:02:25.4]} 17... b5 {[%clk 0:02:47.7]} 18. a5 {[%clk
0:02:13.8]} 18... h5 {[%clk 0:02:45.1]} 19. Ne2 {[%clk 0:02:09.5]} 19... Ne4
{[%clk 0:02:35.6]} 20. Rc2 {[%clk 0:01:58.7]} 20... g6 {[%clk 0:02:16]} 21. Rfc1
{[%clk 0:01:57.8]} 21... Rac8 {[%clk 0:02:15.7]} 22. Nh2 {[%clk 0:01:36.8]}
22... Kg7 {[%clk 0:02:11.5]} 23. f3 {[%clk 0:01:26]} 23... Nxg3 {[%clk
0:02:10.6]} 24. fxg4 {[%clk 0:01:18.5]} 24... Rxe3 {[%clk 0:02:10.1]} 25. gxh5
{[%clk 0:00:56.6]} 25... Rh8 {[%clk 0:02:07]} 26. Rxc6 {[%clk 0:00:32.9]} 26...
Nxe2+ {[%clk 0:02:01.8]} 27. Bxe2 {[%clk 0:00:32.6]} 27... Qxh2+ {[%clk
0:02:00.3]} 28. Kxh2 {[%clk 0:00:27.6]} 28... Rxb3 {[%clk 0:02:01.2]} 29. Rxa6
{[%clk 0:00:22.7]} 29... Rxb4 {[%clk 0:02:01.6]} 30. Ra7 {[%clk 0:00:19.2]}
30... Nf6 {[%clk 0:01:57.7]} 31. Rcc7 {[%clk 0:00:18.5]} 31... Nxh5 {[%clk
0:01:57.1]} 32. Rxf7+ {[%clk 0:00:17.9]} 32... Kh6 {[%clk 0:01:57.4]} 33. Bf3
{[%clk 0:00:11.5]} 33... Kg5 {[%clk 0:01:56.1]} 34. Kg1 {[%clk 0:00:08.4]} 34...
Nf4 {[%clk 0:01:49.3]} 35. Rad7 {[%clk 0:00:06.4]} 35... Rxd4 {[%clk 0:01:49.3]}
36. a6 {[%clk 0:00:06]} 36... Ra4 {[%clk 0:01:42.6]} 37. a7 {[%clk 0:00:06]}
37... d4 {[%clk 0:01:41.2]} 38. Kf2 {[%clk 0:00:05.9]} 38... d3 {[%clk
0:01:41.3]} 39. Ke3 {[%clk 0:00:05.7]} 39... Ra3 {[%clk 0:01:37.8]} 40. a8=Q
{[%clk 0:00:05]} 40... Rhxa8 {[%clk 0:01:32.7]} 41. Bxa8 {[%clk 0:00:05.9]}
41... d2+ {[%clk 0:01:29.8]} 42. Kxd2 {[%clk 0:00:05.4]} 42... Rxa8 {[%clk
0:01:30.4]} 43. Rd4 {[%clk 0:00:03.2]} 43... Ra2+ {[%clk 0:01:30]} 44. Ke3
{[%clk 0:00:03]} 44... Nxg2+ {[%clk 0:01:30.5]} 45. Kf3 {[%clk 0:00:02.1]} 45...
Nh4+ {[%clk 0:01:30.4]} 0-1

[Event "*** Titled Tuesday Blitz"]
[Site "Chess.com"]
[Date "2020.04.14"]
[Round "1"]
[White "Jagerrmeisterr"]
[Black "Everyfishknows"]
[Result "1-0"]
[WhiteElo "2695"]
[BlackElo "2345"]
[TimeControl "180+1"]
[EndTime "10:06:26 PDT"]
[Termination "Jagerrmeisterr won by resignation"]

1. e4 {[%clk 0:02:58.3]} 1... e5 {[%clk 0:02:58.8]} 2. Nc3 {[%clk 0:02:58]} 2...
Nf6 {[%clk 0:02:57.8]} 3. g3 {[%clk 0:02:58.5]} 3... Nc6 {[%clk 0:02:57.1]} 4.
Bg2 {[%clk 0:02:58.8]} 4... Bc5 {[%clk 0:02:49.6]} 5. d3 {[%clk 0:02:58.9]} 5...
O-O {[%clk 0:02:48]} 6. Nge2 {[%clk 0:02:58.5]} 6... d6 {[%clk 0:02:47.5]} 7.
O-O {[%clk 0:02:56.7]} 7... a6 {[%clk 0:02:44.4]} 8. h3 {[%clk 0:02:55.7]} 8...
Be6 {[%clk 0:02:19.8]} 9. Kh2 {[%clk 0:02:55.2]} 9... d5 {[%clk 0:02:19.8]} 10.
f4 {[%clk 0:02:55.3]} 10... dxe4 {[%clk 0:02:15.3]} 11. f5 {[%clk 0:02:55.4]}
11... exd3 {[%clk 0:01:55.1]} 12. fxe6 {[%clk 0:02:55.2]} 12... dxe2 {[%clk
0:01:55.3]} 13. exf7+ {[%clk 0:02:55.7]} 13... Rxf7 {[%clk 0:01:55.3]} 14. Qxe2
{[%clk 0:02:56.6]} 14... Kh8 {[%clk 0:01:29.7]} 15. Qc4 {[%clk 0:02:53.5]} 15...
Qf8 {[%clk 0:01:19]} 16. Ne4 {[%clk 0:02:24.8]} 16... Bd6 {[%clk 0:00:36.7]} 17.
Ng5 {[%clk 0:02:24.3]} 17... Re7 {[%clk 0:00:37.1]} 18. Qh4 {[%clk 0:02:19.9]}
18... Nd4 {[%clk 0:00:22]} 19. Bxb7 {[%clk 0:02:01]} 19... Rb8 {[%clk 0:00:16]}
20. Be4 {[%clk 0:01:59.4]} 20... h6 {[%clk 0:00:10.4]} 21. Kg2 {[%clk
0:01:57.7]} 21... Kg8 {[%clk 0:00:07.6]} 22. c3 {[%clk 0:01:50.2]} 22... Ne6
{[%clk 0:00:04.7]} 23. Nxe6 {[%clk 0:01:45.9]} 23... Rxe6 {[%clk 0:00:04.7]} 24.
Bd5 {[%clk 0:01:44.4]} 24... Nxd5 {[%clk 0:00:05.2]} 25. Rxf8+ {[%clk
0:01:44.4]} 25... Rxf8 {[%clk 0:00:06.1]} 26. Qc4 {[%clk 0:01:42.9]} 26... c6
{[%clk 0:00:05.3]} 27. Qxc6 {[%clk 0:01:42.2]} 27... Ne7 {[%clk 0:00:04.9]} 28.
Qc4 {[%clk 0:01:42]} 28... Rf6 {[%clk 0:00:02.7]} 29. Bd2 {[%clk 0:01:37.4]}
29... Kh7 {[%clk 0:00:03.1]} 30. Rf1 {[%clk 0:01:35.6]} 30... Rxf1 {[%clk
0:00:02.2]} 31. Kxf1 {[%clk 0:01:34.7]} 31... Rf6+ {[%clk 0:00:01.8]} 32. Kg2
{[%clk 0:01:35.1]} 32... Nf5 {[%clk 0:00:01.6]} 33. Qe4 {[%clk 0:01:35.1]} 33...
Kg8 {[%clk 0:00:02]} 34. b4 {[%clk 0:01:32]} 34... g6 {[%clk 0:00:02.4]} 35. a4
{[%clk 0:01:31.3]} 35... h5 {[%clk 0:00:02.5]} 36. Bg5 {[%clk 0:01:27.6]} 36...
Rf7 {[%clk 0:00:02.6]} 37. g4 {[%clk 0:01:27.3]} 37... hxg4 {[%clk 0:00:01.9]}
38. hxg4 {[%clk 0:01:28.2]} 38... Ne7 {[%clk 0:00:02.4]} 39. Bxe7 {[%clk
0:01:28]} 39... Bxe7 {[%clk 0:00:03.2]} 40. Qxg6+ {[%clk 0:01:28.3]} 40... Rg7
{[%clk 0:00:03.4]} 41. Qxa6 {[%clk 0:01:27.1]} 41... Kh7 {[%clk 0:00:04.3]} 42.
Qe6 {[%clk 0:01:26.5]} 42... Rg6 {[%clk 0:00:04.1]} 43. Qxe7+ {[%clk 0:01:26.9]}
43... Kh6 {[%clk 0:00:05]} 44. Qh4+ {[%clk 0:01:26.2]} 44... Kg7 {[%clk
0:00:05.1]} 45. a5 {[%clk 0:01:26.7]} 45... Rh6 {[%clk 0:00:04.6]} 46. Qxh6+
{[%clk 0:01:26.6]} 46... Kxh6 {[%clk 0:00:04.9]} 47. a6 {[%clk 0:01:27.5]} 47...
Kg5 {[%clk 0:00:05.8]} 48. a7 {[%clk 0:01:28.4]} 48... e4 {[%clk 0:00:06.7]} 49.
a8=Q {[%clk 0:01:29.3]} 49... Kxg4 {[%clk 0:00:07.6]} 1-0

[Event "*** Titled Tuesday Blitz"]
[Site "Chess.com"]
[Date "2020.04.14"]
[Round "1"]
[White "INLOVEWITHF"]
[Black "Playgood28"]
[Result "1-0"]
[WhiteElo "2559"]
[BlackElo "2160"]
[TimeControl "180+1"]
[EndTime "10:06:28 PDT"]
[Termination "INLOVEWITHF won on time"]

1. e4 {[%clk 0:02:59.3]} 1... e5 {[%clk 0:02:59.1]} 2. Nf3 {[%clk 0:02:58.7]}
2... d6 {[%clk 0:02:58.9]} 3. d4 {[%clk 0:02:58.2]} 3... exd4 {[%clk 0:02:59]}
4. Nxd4 {[%clk 0:02:54.9]} 4... Nf6 {[%clk 0:02:58.8]} 5. Nc3 {[%clk 0:02:55.1]}
5... Be7 {[%clk 0:02:59]} 6. g3 {[%clk 0:02:55]} 6... d5 {[%clk 0:02:56.5]} 7.
e5 {[%clk 0:02:54]} 7... Ng4 {[%clk 0:02:56]} 8. f4 {[%clk 0:02:52]} 8... c5
{[%clk 0:02:49]} 9. Nde2 {[%clk 0:02:29.8]} 9... d4 {[%clk 0:02:47.3]} 10. Ne4
{[%clk 0:02:28.8]} 10... Nc6 {[%clk 0:02:42.6]} 11. h3 {[%clk 0:02:21.6]} 11...
Nh6 {[%clk 0:02:18.3]} 12. Bg2 {[%clk 0:02:20.7]} 12... O-O {[%clk 0:02:15.6]}
13. O-O {[%clk 0:02:16.8]} 13... f6 {[%clk 0:02:09.4]} 14. exf6 {[%clk
0:02:11.9]} 14... Bxf6 {[%clk 0:02:08.4]} 15. Qd3 {[%clk 0:02:08.1]} 15... Be7
{[%clk 0:01:47.1]} 16. Nxc5 {[%clk 0:01:59.8]} 16... Kh8 {[%clk 0:01:18.4]} 17.
Qb5 {[%clk 0:01:58.1]} 17... Qc7 {[%clk 0:01:02.2]} 18. Ne4 {[%clk 0:01:53.9]}
18... Nf5 {[%clk 0:00:52.3]} 19. g4 {[%clk 0:01:53.2]} 19... Nd6 {[%clk
0:00:50.8]} 20. Nxd6 {[%clk 0:01:48.9]} 20... Bxd6 {[%clk 0:00:50.6]} 21. f5
{[%clk 0:01:49]} 21... a6 {[%clk 0:00:46.9]} 22. Qc4 {[%clk 0:01:48.4]} 22...
Qb6 {[%clk 0:00:28.7]} 23. Kh1 {[%clk 0:01:47.6]} 23... Bd7 {[%clk 0:00:28]} 24.
Qd5 {[%clk 0:01:39.8]} 24... Qc7 {[%clk 0:00:24.2]} 25. Bf4 {[%clk 0:01:40.2]}
25... Bxf4 {[%clk 0:00:22.4]} 26. Nxf4 {[%clk 0:01:41.1]} 26... Rad8 {[%clk
0:00:20.8]} 27. Qc5 {[%clk 0:01:35.1]} 27... b6 {[%clk 0:00:19.1]} 28. Qc4
{[%clk 0:01:30.5]} 28... Qd6 {[%clk 0:00:18.8]} 29. Rad1 {[%clk 0:01:30.6]}
29... b5 {[%clk 0:00:09.5]} 30. Qd5 {[%clk 0:01:27.5]} 30... Qxd5 {[%clk
0:00:08.1]} 31. Bxd5 {[%clk 0:01:27.7]} 31... Nb4 {[%clk 0:00:06.8]} 32. Bb3
{[%clk 0:01:24.2]} 32... a5 {[%clk 0:00:05.2]} 33. a3 {[%clk 0:01:19.7]} 33...
a4 {[%clk 0:00:02.7]} 34. axb4 {[%clk 0:01:18.1]} 34... axb3 {[%clk 0:00:02.4]}
35. cxb3 {[%clk 0:01:19]} 35... Bc6+ {[%clk 0:00:01.6]} 36. Kh2 {[%clk
0:01:18.6]} 36... Rfe8 {[%clk 0:00:01.4]} 37. Ne6 {[%clk 0:01:18.3]} 1-0

[Event "*** Titled Tuesday Blitz"]
[Site "Chess.com"]
[Date "2020.04.14"]
[Round "1"]
[White "elefante38"]
[Black "Winehouse83"]
[Result "0-1"]
[WhiteElo "2805"]
[BlackElo "2450"]
[TimeControl "180+1"]
[EndTime "10:06:30 PDT"]
[Termination "Winehouse83 won by resignation"]

1. Nf3 {[%clk 0:03:00.9]} 1... Nf6 {[%clk 0:02:57.7]} 2. c4 {[%clk 0:03:00.7]}
2... e6 {[%clk 0:02:53.2]} 3. g3 {[%clk 0:03:00.9]} 3... b6 {[%clk 0:02:51.6]}
4. Bg2 {[%clk 0:03:00.7]} 4... Bb7 {[%clk 0:02:51.3]} 5. O-O {[%clk 0:03:00.6]}
5... Be7 {[%clk 0:02:48.1]} 6. d4 {[%clk 0:02:59.5]} 6... d5 {[%clk 0:02:43.5]}
7. cxd5 {[%clk 0:02:57.7]} 7... exd5 {[%clk 0:02:37.2]} 8. Nc3 {[%clk
0:02:57.5]} 8... O-O {[%clk 0:02:36.4]} 9. Bf4 {[%clk 0:02:56.8]} 9... c6 {[%clk
0:02:33.7]} 10. Rc1 {[%clk 0:02:55.7]} 10... Nbd7 {[%clk 0:02:32.6]} 11. Qc2
{[%clk 0:02:44.7]} 11... Re8 {[%clk 0:02:24.5]} 12. Ne5 {[%clk 0:02:44.2]} 12...
Nf8 {[%clk 0:02:23.4]} 13. e4 {[%clk 0:02:39.5]} 13... Ne6 {[%clk 0:02:16.3]}
14. Be3 {[%clk 0:02:26.3]} 14... c5 {[%clk 0:02:00.2]} 15. Nxd5 {[%clk 0:02:17]}
15... cxd4 {[%clk 0:01:46.5]} 16. Bd2 {[%clk 0:02:05.8]} 16... Nxd5 {[%clk
0:01:41]} 17. exd5 {[%clk 0:02:05.4]} 17... Bxd5 {[%clk 0:01:39.9]} 18. Nc6
{[%clk 0:02:06]} 18... Bxc6 {[%clk 0:01:35.2]} 19. Bxc6 {[%clk 0:02:05.2]} 19...
Rc8 {[%clk 0:01:31.2]} 20. Qf5 {[%clk 0:01:59.8]} 20... Rf8 {[%clk 0:01:25.4]}
21. h4 {[%clk 0:01:52.5]} 21... d3 {[%clk 0:01:17.6]} 22. Bg2 {[%clk 0:01:45.8]}
22... g6 {[%clk 0:01:11.1]} 23. Qe4 {[%clk 0:01:44]} 23... Rxc1 {[%clk
0:01:04.2]} 24. Rxc1 {[%clk 0:01:43.3]} 24... Bf6 {[%clk 0:01:04.4]} 25. b3
{[%clk 0:01:42.2]} 25... Re8 {[%clk 0:01:01.6]} 26. Qc4 {[%clk 0:01:40.7]} 26...
Nd4 {[%clk 0:00:59]} 27. Rd1 {[%clk 0:01:40.6]} 27... Ne2+ {[%clk 0:00:55.8]}
28. Kh1 {[%clk 0:01:40.3]} 28... Qd4 {[%clk 0:00:53.5]} 29. Be3 {[%clk
0:01:34.4]} 29... Qxc4 {[%clk 0:00:43.5]} 30. bxc4 {[%clk 0:01:34]} 30... Nxg3+
{[%clk 0:00:39.9]} 31. Kh2 {[%clk 0:01:25.2]} 31... Nf5 {[%clk 0:00:39.4]} 32.
Bg5 {[%clk 0:01:25.3]} 32... Bxg5 {[%clk 0:00:30.3]} 33. hxg5 {[%clk 0:01:25.3]}
33... Rd8 {[%clk 0:00:30.1]} 34. Be4 {[%clk 0:01:24.3]} 34... d2 {[%clk
0:00:27.9]} 35. Bd5 {[%clk 0:01:24.3]} 35... Nd4 {[%clk 0:00:25.2]} 36. Kg2
{[%clk 0:01:23.4]} 36... Ne6 {[%clk 0:00:24.5]} 37. Rxd2 {[%clk 0:01:21.5]}
37... Nxg5 {[%clk 0:00:23.9]} 38. Re2 {[%clk 0:01:21.5]} 38... Rd7 {[%clk
0:00:18.7]} 39. Re8+ {[%clk 0:01:21.1]} 39... Kg7 {[%clk 0:00:18.5]} 40. f4
{[%clk 0:01:21.1]} 40... Ne6 {[%clk 0:00:17.6]} 41. Kf3 {[%clk 0:01:21.1]} 41...
Nc7 {[%clk 0:00:16.3]} 42. Ra8 {[%clk 0:01:18]} 42... Nxd5 {[%clk 0:00:16.1]}
43. cxd5 {[%clk 0:01:17.5]} 43... Rxd5 {[%clk 0:00:16.4]} 44. Rxa7 {[%clk
0:01:17.9]} 44... Ra5 {[%clk 0:00:16.8]} 45. Rxa5 {[%clk 0:01:17.2]} 45... bxa5
{[%clk 0:00:16]} 46. Kg4 {[%clk 0:01:17.4]} 46... h5+ {[%clk 0:00:15.2]} 0-1

[Event "*** Titled Tuesday Blitz"]
[Site "Chess.com"]
[Date "2020.04.14"]
[Round "1"]
[White "Aryangholami"]
[Black "Larax"]
[Result "1-0"]
[WhiteElo "2746"]
[BlackElo "2389"]
[TimeControl "180+1"]
[EndTime "10:06:30 PDT"]
[Termination "Aryangholami won by resignation"]

1. Nf3 {[%clk 0:03:00.1]} 1... Nf6 {[%clk 0:02:58.2]} 2. d4 {[%clk 0:02:59.4]}
2... g6 {[%clk 0:02:57.8]} 3. Bg5 {[%clk 0:02:59.3]} 3... Ne4 {[%clk 0:02:55.4]}
4. Bh4 {[%clk 0:02:54.9]} 4... Bg7 {[%clk 0:02:54.4]} 5. Nbd2 {[%clk 0:02:54.7]}
5... d5 {[%clk 0:02:47.3]} 6. e3 {[%clk 0:02:54.8]} 6... c5 {[%clk 0:02:42]} 7.
c3 {[%clk 0:02:52]} 7... Nc6 {[%clk 0:02:41.3]} 8. Nxe4 {[%clk 0:02:50.9]} 8...
dxe4 {[%clk 0:02:39.9]} 9. Nd2 {[%clk 0:02:51.4]} 9... f5 {[%clk 0:02:24.7]} 10.
Bc4 {[%clk 0:02:34.5]} 10... Qd6 {[%clk 0:02:04.6]} 11. Bb3 {[%clk 0:02:24]}
11... Be6 {[%clk 0:02:02.1]} 12. Bg3 {[%clk 0:01:59.5]} 12... Qd7 {[%clk
0:02:00.9]} 13. dxc5 {[%clk 0:01:58.7]} 13... Rd8 {[%clk 0:01:53.4]} 14. Qe2
{[%clk 0:01:51.4]} 14... O-O {[%clk 0:01:50.4]} 15. O-O {[%clk 0:01:47.2]} 15...
Bxb3 {[%clk 0:01:36.7]} 16. Nxb3 {[%clk 0:01:48.1]} 16... e5 {[%clk 0:01:36.9]}
17. Rfd1 {[%clk 0:01:47.1]} 17... Qe6 {[%clk 0:01:36.6]} 18. Bh4 {[%clk
0:01:45.4]} 18... Bf6 {[%clk 0:01:25.3]} 19. Bxf6 {[%clk 0:01:44.3]} 19... Qxf6
{[%clk 0:01:26.2]} 20. Qc4+ {[%clk 0:01:44.1]} 20... Kg7 {[%clk 0:01:21.8]} 21.
h3 {[%clk 0:01:40.8]} 21... h5 {[%clk 0:01:10]} 22. Qb5 {[%clk 0:01:32.6]} 22...
Qf7 {[%clk 0:01:05.4]} 23. Rd6 {[%clk 0:01:28.1]} 23... Rxd6 {[%clk 0:00:55.8]}
24. cxd6 {[%clk 0:01:27.7]} 24... Rd8 {[%clk 0:00:55.6]} 25. Rd1 {[%clk
0:01:27.4]} 25... Nb8 {[%clk 0:00:38.9]} 26. Qa5 {[%clk 0:01:20.3]} 26... Nc6
{[%clk 0:00:36.7]} 27. Qb5 {[%clk 0:01:18.5]} 27... Kf6 {[%clk 0:00:37]} 28. Nc5
{[%clk 0:01:17.5]} 28... b6 {[%clk 0:00:19.5]} 29. Nxe4+ {[%clk 0:01:13.5]}
29... fxe4 {[%clk 0:00:20.3]} 30. Qxc6 {[%clk 0:01:13.5]} 30... Qe6 {[%clk
0:00:20.7]} 31. a4 {[%clk 0:01:04.8]} 31... h4 {[%clk 0:00:19.7]} 32. Qxe4
{[%clk 0:01:02.7]} 32... Rxd6 {[%clk 0:00:18.8]} 33. Qxh4+ {[%clk 0:01:02.9]}
33... Kg7 {[%clk 0:00:19]} 34. Rxd6 {[%clk 0:00:58.1]} 34... Qxd6 {[%clk
0:00:19.9]} 35. Qe4 {[%clk 0:00:58.3]} 35... Qd1+ {[%clk 0:00:19.3]} 36. Kh2
{[%clk 0:00:58.2]} 36... Qd2 {[%clk 0:00:18.7]} 37. Qxe5+ {[%clk 0:00:57.5]}
37... Kh6 {[%clk 0:00:19.2]} 38. Qf4+ {[%clk 0:00:57.4]} 38... Kg7 {[%clk
0:00:19.5]} 39. Qd4+ {[%clk 0:00:55]} 39... Kh6 {[%clk 0:00:19.8]} 40. Qxd2
{[%clk 0:00:54.6]} 1-0